bitfinex-derivatives/quotes_ETHF0:USTF0_20230903
["timestamp","ask_amount","ask_price","bid_price","bid_amount"]
[1693759162267,25.63929352,1629.4,1629.3,3.06937]
[1693759163074,28.70865352,1629.4,1629.2,6.13894]
[1693759163267,28.70865352,1629.4,1629.2,6.13888]
[1693759163473,25.77293648,1629.3,1629.1,2.5213]
[1693759163673,31.77936352,1629.2,1629.1,2.5213]
[1693759163877,38.29450326,1629.2,1629.1,2.5213]
[1693759164972,31.77936352,1629.2,1628.6,6.14123]
[1693759165175,31.77936352,1629.2,1628.1,13.503]
[1693759165176,25.78496,1628.7,1628.1,3.07154]
[1693759165477,25.78496,1628.7,1627.9,29.8405]
[1693759165478,25.78496,1628.7,1628.3,6.14251]
[1693759165776,19.64518,1628.4,1628.3,9.21378]
[1693759165972,22.51234352,1628.4,1628.3,10.15762459]
[1693759166173,22.71627,1628.4,1628.3,10.15762459]
[1693759166375,19.64461,1628.6,1628.3,13.22889459]
[1693759166577,3.07088,1628.5,1628.3,13.22889459]
[1693759166775,3.07088,1628.5,1628.4,11.48314648]
[1693759167176,3.07088,1628.5,1628.4,14.55421648]
[1693759167775,3.07088,1628.5,1628.4,8.41209648]
[1693759167776,12.07984352,1628.5,1628.4,8.41209648]
[1693759167972,9.21268,1628.5,1628.4,8.41209648]
[1693759168173,22.71568,1628.5,1628.4,5.63937]
[1693759168378,22.71568,1628.5,1628.4,2.5683]
[1693759168379,28.65374352,1628.5,1628.4,2.5683]
[1693759169181,19.64478,1628.5,1628.4,12.72539459]
[1693759169380,22.71568,1628.5,1628.4,12.72539459]
[1693759169577,22.71568,1628.5,1628.4,9.65430459]
[1693759169774,22.71568,1628.5,1628.4,6.58321459]
[1693759169975,28.65374352,1628.5,1628.4,2.5683]
[1693759170181,28.65374352,1628.5,1628.4,5.63934]
[1693759170680,28.65374352,1628.5,1628.4,2.5683]
[1693759171474,12.28512,1628.3,1628.1,6.14318]
[1693759171676,25.58457352,1628.2,1628.1,6.14318]
[1693759171878,27.85451,1628.2,1628.1,7.08702459]
[1693759172476,27.85451,1628.2,1628.1,6.14318]
[1693759172883,24.98734648,1628.2,1628.1,7.08702459]
[1693759173079,19.64594,1628.2,1628.1,10.15867459]
[1693759173381,22.71741,1628.2,1628.1,10.15867459]
[1693759173883,19.64594,1628.2,1628.1,10.15867459]
[1693759174178,21.91574648,1628.3,1628.1,13.23032459]
[1693759174375,21.91566648,1628.3,1628.1,13.23032459]
[1693759174575,3.07116,1628.4,1628.2,2.26993648]
[1693759174781,6.14203,1628.5,1628.3,13.22896459]
[1693759175081,6.14203,1628.5,1628.4,2.26993648]
[1693759175280,16.57377,1628.6,1628.4,11.48323648]
[1693759175479,3.07039,1628.8,1628.4,14.55433648]
[1693759175685,6.14083,1628.8,1628.4,28.05733648]
[1693759176285,9.21127,1628.8,1628.4,14.55433648]
[1693759177478,11.48120648,1628.8,1628.4,14.55433648]
[1693759178280,14.55164648,1628.8,1628.4,11.48323648]
[1693759178479,13.503,1628.6,1628.4,6.1422]
[1693759178685,14.34977,1628.5,1628.4,6.1422]
[1693759178881,14.34977,1628.5,1628.4,3.07108]
[1693759179086,30.92366,1628.5,1628.3,3.07126]
[1693759180183,30.92366,1628.5,1628.2,3.0714]
[1693759180389,13.503,1628.3,1628.2,6.14281]
[1693759180684,27.85391,1628.3,1628.2,6.14281]
[1693759181077,27.85391,1628.3,1628.2,3.0714]
[1693759181277,27.85391,1628.3,1628.2,6.14282]
[1693759182178,30.92518,1628.3,1628.1,6.143]
[1693759182375,27.42218,1628.3,1628.0,2.5633]
[1693759182575,25.78924,1628.1,1628.0,2.5633]
[1693759182783,3.07102,1628.4,1628.0,15.79410459]
[1693759182984,6.14216,1628.4,1628.0,29.29710459]
[1693759183176,6.14212,1628.4,1628.1,2.26993648]
[1693759183383,22.71527,1628.6,1628.3,12.2848]
[1693759183885,22.71527,1628.6,1628.5,6.14164]
[1693759184082,25.58243352,1628.6,1628.5,6.14164]
[1693759184478,6.1411,1628.7,1628.5,12.28328]
[1693759184686,9.2117,1628.7,1628.6,3.21378107]
[1693759184984,12.07886352,1628.7,1628.6,9.21189]
[1693759185286,25.58186352,1628.7,1628.6,7.08510459]
[1693759185587,25.58186352,1628.7,1628.6,6.14126]
[1693759186183,22.7147,1628.7,1628.6,7.08510459]
[1693759186385,22.7147,1628.7,1628.6,10.15573459]
[1693759186584,9.2117,1628.7,1628.6,7.08510459]
[1693759186887,12.07886352,1628.7,1628.6,6.14126]
[1693759187082,25.58186352,1628.7,1628.5,8.41132648]
[1693759187280,22.7147,1628.7,1628.6,3.07061]
[1693759187489,25.58186352,1628.7,1628.6,6.14122]
[1693759187785,25.58186352,1628.7,1628.6,9.21183]
[1693759189389,6.23198944,1628.8,1628.6,9.21183]
[1693759189588,3.16163944,1628.9,1628.7,3.21378107]
[1693759189796,3.16163944,1629.0,1628.8,12.28096]
[1693759189987,9.36256944,1629.1,1628.9,3.21378107]
[1693759190188,3.16163944,1629.2,1629.0,9.20958]
[1693759190386,3.16163944,1629.2,1629.0,12.27948]
[1693759190588,3.16163944,1629.2,1629.1,3.21378107]
[1693759190791,3.16163944,1629.2,1629.1,15.49278107]
[1693759191188,6.23121944,1629.2,1629.1,15.49278107]
[1693759191389,6.02880296,1629.2,1629.1,15.49278107]
[1693759191600,4.56624701,1629.2,1629.1,15.49278107]
[1693759191789,13.77498701,1629.2,1629.1,6.13952]
[1693759192097,30.16733928,1629.2,1629.1,6.13952]
[1693759192407,30.16733928,1629.2,1629.1,10.15313459]
[1693759193193,27.09775928,1629.2,1629.1,10.15313459]
[1693759193496,13.59475928,1629.2,1629.1,10.15313459]
[1693759193897,10.72759576,1629.2,1629.1,10.15313459]
[1693759194104,16.66433928,1629.2,1629.1,10.15313459]
[1693759194603,13.79717576,1629.2,1629.1,10.15313459]
[1693759195304,16.72573928,1629.2,1629.1,3.06975]
[1693759195598,26.25450122,1629.2,1629.1,3.06975]
[1693759196203,26.25450122,1629.2,1629.1,7.08336459]
[1693759196400,26.25450122,1629.2,1629.1,6.13952]
[1693759196704,26.25450122,1629.2,1629.1,7.08336459]
[1693759197208,26.25450122,1629.2,1629.1,10.15313459]
[1693759197209,24.23215855,1629.2,1629.1,10.15313459]
[1693759197600,27.09932207,1629.2,1629.1,10.15313459]
[1693759197902,27.09932207,1629.2,1629.1,9.20929]
[1693759198101,27.09932207,1629.2,1629.1,10.15313459]
[1693759198301,24.23215855,1629.2,1629.1,10.15313459]
[1693759198620,22.50932352,1629.2,1629.1,9.20929]
[1693759198911,22.50932352,1629.2,1629.1,10.15313459]
[1693759198912,27.09963742,1629.2,1629.1,10.15313459]
[1693759199601,20.2563524,1629.2,1629.1,10.15313459]
[1693759199801,23.12351592,1629.2,1629.1,10.15313459]
[1693759200104,9.27071,1629.1,1629.0,6.13965]
[1693759200293,16.13273059,1629.1,1629.0,6.13965]
[1693759200495,16.13273059,1629.1,1629.0,7.08349459]
[1693759200693,12.15483888,1629.1,1629.0,6.13965]
[1693759200897,16.13272614,1629.1,1629.0,9.2096]
[1693759201496,16.13272614,1629.1,1629.0,6.13965]
[1693759201700,12.15483888,1629.1,1629.0,6.13965]
[1693759202105,16.92618468,1629.1,1629.0,3.0698]
[1693759202305,19.99595468,1629.1,1628.9,3.07]
[1693759202506,16.98443014,1629.0,1628.7,2.5177]
[1693759202707,3.98194942,1628.8,1628.7,5.58806]
[1693759203009,13.60403956,1628.8,1628.7,11.7291]
[1693759203207,10.53370956,1628.8,1628.7,12.67294459]
[1693759203407,10.53372262,1628.8,1628.7,12.67294459]
[1693759203602,7.6665591,1628.8,1628.7,12.67294459]
[1693759204207,7.46339262,1628.8,1628.7,12.67294459]
[1693759204705,7.6665591,1628.8,1628.7,12.67294459]
[1693759204906,8.46294415,1628.8,1628.7,12.67294459]
[1693759205098,5.39261415,1628.8,1628.7,15.74346459]
[1693759205294,0.61427968,1628.8,1628.7,15.74346459]
[1693759205808,0.61427968,1628.8,1628.7,29.24646459]
[1693759208208,4.77833447,1629.0,1628.7,35.78634231]
[1693759208402,4.77833447,1629.0,1628.9,13.503]
[1693759208601,5.57472355,1629.1,1628.9,29.79754459]
[1693759208602,4.77833447,1629.1,1628.9,29.79754459]
[1693759208903,4.77833447,1629.1,1629.0,2.26993648]
[1693759209204,4.77833447,1629.2,1629.0,14.54977648]
[1693759209408,4.77833447,1629.2,1629.1,13.22292459]
[1693759209604,4.77833447,1629.2,1629.1,26.72592459]
[1693759210005,4.77833447,1629.3,1629.1,26.72592459]
[1693759210204,4.77833447,1629.3,1629.2,14.54825648]
[1693759211605,4.77833447,1629.4,1629.2,28.05125648]
[1693759211914,4.77833447,1629.4,1629.3,14.44684459]
[1693759212101,4.77833447,1629.6,1629.3,26.72440459]
[1693759212408,4.77833447,1629.7,1629.4,2.26993648]
[1693759212612,4.77833447,1629.7,1629.5,13.21988459]
[1693759212905,28.64479352,1629.7,1629.5,3.06898]
[1693759213109,29.5127187,1629.6,1629.5,3.06898]
[1693759213301,28.71382518,1629.6,1629.5,6.13799]
[1693759213505,14.41684016,1629.6,1629.5,6.13799]
[1693759213710,14.41684016,1629.6,1629.5,9.207]
[1693759213907,14.41684016,1629.6,1629.5,10.15084459]
[1693759214105,9.07807368,1629.6,1629.5,10.15084459]
[1693759214301,7.84956853,1629.6,1629.5,10.15084459]
[1693759214508,10.91839853,1629.6,1629.5,10.15084459]
[1693759214711,17.28366791,1629.6,1629.5,9.20703]
[1693759215007,24.21531293,1629.6,1629.3,3.06928]
[1693759215212,0.0614,1629.4,1629.3,9.20797]
[1693759215410,9.06712352,1629.4,1629.3,10.15181459]
[1693759215607,12.13640352,1629.4,1629.3,10.15181459]
[1693759215807,16.91690994,1629.4,1629.3,9.20797]
[1693759216009,12.13640352,1629.4,1629.3,9.20797]
[1693759216311,16.91690994,1629.4,1629.3,9.20797]
[1693759216504,12.13640352,1629.4,1629.3,10.15181459]
[1693759216705,9.06712352,1629.4,1629.3,10.15181459]
[1693759217311,12.13640352,1629.4,1629.3,10.15181459]
[1693759217708,9.26924,1629.4,1629.3,10.15181459]
[1693759217907,6.19996,1629.4,1629.3,10.15181459]
[1693759218310,9.68125175,1629.4,1629.3,10.15181459]
[1693759218513,6.81408823,1629.4,1629.3,10.15181459]
[1693759219511,12.38881178,1629.4,1629.3,10.15181459]
[1693759220111,3.74480823,1629.4,1629.3,13.22127459]
[1693759220308,8.52496679,1629.4,1629.3,13.22127459]
[1693759221209,8.52487679,1629.4,1629.3,13.22127459]
[1693759222117,11.59406679,1629.4,1629.3,13.22127459]
[1693759222516,5.39428679,1629.4,1629.3,13.22127459]
[1693759222815,0.61412823,1629.4,1629.3,13.22127459]
[1693759223010,0.61412823,1629.4,1629.3,26.72427459]
[1693759224712,4.78015856,1629.6,1629.4,2.26993648]
[1693759225013,4.78015856,1629.6,1629.5,16.28894459]
[1693759225215,4.78015856,1629.7,1629.5,16.28894459]
[1693759225711,4.78015856,1629.6,1629.5,16.28894459]
[1693759225905,4.78015856,1629.6,1629.5,18.55888107]
[1693759226105,4.78015856,1629.7,1629.5,18.55888107]
[1693759226317,4.78015856,1629.7,1629.5,32.06188107]
[1693759226912,4.78015856,1629.9,1629.6,6.92077904]
[1693759227114,10.91669856,1629.9,1629.7,13.21860459]
[1693759227315,10.91669856,1629.9,1629.8,2.26993648]
[1693759227517,10.91669856,1629.9,1629.8,14.54389648]
[1693759228015,14.57842707,1629.9,1629.8,14.54389648]
[1693759228318,11.71126355,1629.9,1629.8,14.54389648]
[1693759228613,12.93919359,1629.9,1629.8,14.54389648]
[1693759228810,11.71126355,1629.9,1629.8,14.54389648]
[1693759229215,12.93919359,1629.9,1629.8,14.54389648]
[1693759229620,12.14949762,1629.9,1629.8,14.54389648]
[1693759230219,15.21779219,1629.9,1629.8,14.54389648]
[1693759230412,18.08495571,1629.9,1629.8,14.54389648]
[1693759230616,38.70875442,1629.9,1629.5,6.13778]
[1693759230814,13.503,1629.6,1629.4,6.13815]
[1693759231008,14.40541,1629.5,1629.4,6.13815]
[1693759231211,14.40541,1629.5,1629.4,7.08199459]
[1693759231914,14.40541,1629.5,1629.4,6.13822]
[1693759231915,17.47870629,1629.5,1629.4,6.13822]
[1693759232308,22.26455521,1629.5,1629.4,6.13822]
[1693759232508,22.26455521,1629.5,1629.4,7.08206459]
[1693759232708,19.19556521,1629.5,1629.4,10.15124459]
[1693759233414,19.19556521,1629.5,1629.4,9.2074]
[1693759234018,19.19556521,1629.5,1629.4,10.15124459]
[1693759234517,20.42371138,1629.5,1629.4,10.15124459]
[1693759234714,21.03778469,1629.5,1629.4,10.15124459]
[1693759235022,18.96826266,1629.5,1629.4,10.15124459]
[1693759235213,21.83542618,1629.5,1629.4,10.15124459]
[1693759235618,21.83542618,1629.5,1629.4,9.2074]
[1693759236014,21.83542618,1629.5,1629.4,6.13822]
[1693759236219,21.83542618,1629.5,1620.6,76.78411646]
[1693759236220,0.0614,1629.1,1628.9,6.63215144]
[1693759236418,24.04388677,1629.0,1628.9,3.56213144]
[1693759236721,36.32360677,1629.0,1628.9,0.49214144]
[1693759236917,36.32360677,1629.0,1628.8,6.14044]
[1693759237117,13.503,1628.9,1628.8,6.14044]
[1693759237418,29.34563982,1628.9,1628.8,7.08428459]
[1693759237611,24.52644822,1628.9,1628.8,9.35422107]
[1693759238016,11.54400941,1628.9,1628.8,7.08428459]
[1693759238218,11.54400941,1628.9,1628.8,12.42453107]
[1693759240417,11.54400941,1628.9,1628.8,12.90646232]
[1693759240627,14.41117293,1628.9,1628.8,12.90646232]
[1693759240923,11.54400941,1628.9,1628.8,12.90646232]
[1693759241225,17.48129293,1628.9,1628.8,11.96261773]
[1693759241426,17.48129293,1628.9,1628.8,12.90646232]
[1693759241626,17.48129293,1628.9,1628.8,9.69268125]
[1693759241822,17.48129293,1628.9,1628.8,10.63652584]
[1693759242125,12.69177872,1628.9,1628.8,10.63652584]
[1693759242634,14.61412941,1628.9,1628.8,10.63652584]
[1693759243130,30.55141293,1628.9,1628.7,0.4797]
[1693759243324,35.48270546,1628.8,1628.7,0.4797]
[1693759243922,35.48795418,1628.8,1628.7,0.4797]
[1693759245428,2.86716352,1628.7,1628.5,3.07078]
[1693759245729,14.55269648,1628.6,1628.4,6.14202]
[1693759245926,13.81506004,1628.5,1628.4,9.21308]
[1693759246130,13.81506004,1628.5,1628.4,10.15692459]
[1693759246721,16.68222356,1628.5,1628.4,10.15692459]
[1693759247228,13.81506004,1628.5,1628.4,10.15692459]
[1693759247428,16.68222356,1628.5,1628.4,9.21308]
[1693759247832,16.68222356,1628.5,1628.4,3.07099]
[1693759248127,19.75195939,1628.5,1628.3,11.77331]
[1693759248336,19.75195939,1628.5,1628.3,8.70226]
[1693759248337,29.58725953,1628.4,1628.3,8.70226]
[1693759248728,29.58731064,1628.4,1628.3,8.70226]
[1693759249331,29.58731064,1628.4,1628.3,12.71742459]
[1693759249635,3.1879813,1628.4,1628.3,15.78872459]
[1693759250922,2.39051624,1628.4,1628.3,15.78872459]
[1693759251835,9.00926352,1628.4,1628.3,8.70226]
[1693759252133,12.08031352,1628.4,1628.3,11.77355]
[1693759252330,16.06712182,1628.4,1628.3,11.77355]
[1693759252641,12.39911423,1628.4,1628.3,12.71739459]
[1693759253134,3.18596423,1628.4,1628.3,15.78868459]
[1693759254046,9.32802423,1628.4,1628.3,15.78868459]
[1693759254230,3.18596423,1628.4,1628.3,15.78868459]
[1693759254430,6.14206,1628.4,1628.3,15.78868459]
[1693759254633,8.53085426,1628.4,1628.3,15.78868459]
[1693759254838,31.84024775,1628.4,1628.3,2.5598]
[1693759255034,32.64109182,1628.4,1628.3,2.5598]
[1693759255243,32.64109182,1628.4,1628.1,6.14292]
[1693759255532,11.60279939,1628.2,1628.1,6.14292]
[1693759255737,14.46996291,1628.2,1628.1,9.21452]
[1693759256137,14.46996291,1628.2,1628.1,6.14292]
[1693759256438,14.46996291,1628.2,1628.1,3.07146]
[1693759257133,17.54137291,1628.2,1628.1,3.0716]
[1693759257338,31.84057335,1628.2,1627.9,8.60082]
[1693759257534,0.0614,1627.9,1627.7,20.42283]
[1693759257839,28.65880352,1627.8,1627.7,20.42294]
[1693759258035,30.92874,1627.8,1627.7,20.42294]
[1693759258231,8.41425648,1627.8,1627.7,10.48113459]
[1693759258427,5.34209648,1627.8,1627.7,10.48113459]
[1693759258628,8.41425648,1627.8,1627.7,13.55348459]
[1693759258834,8.41976397,1627.8,1627.7,13.55348459]
[1693759259036,11.28692749,1627.8,1627.7,13.55348459]
[1693759259337,11.49192397,1627.8,1627.7,10.48113459]
[1693759259635,0.00550749,1627.8,1627.7,10.48113459]
[1693759259838,0.00550749,1627.8,1627.7,13.55348459]
[1693759260039,9.21628,1627.9,1627.7,13.55348459]
[1693759260235,6.14378,1628.0,1627.8,2.26993648]
[1693759260442,8.53008702,1628.2,1627.9,26.73480459]
[1693759260637,2.38696702,1628.2,1628.1,13.503]
[1693759260839,3.1826227,1628.4,1628.2,0.94384459]
[1693759261143,2.38550065,1628.4,1628.3,25.78796]
[1693759261330,11.39472417,1628.4,1628.3,11.48365648]
[1693759261539,14.46582417,1628.4,1628.3,9.21372]
[1693759261742,14.46582417,1628.4,1628.3,6.14248]
[1693759261938,15.26294622,1628.4,1628.2,8.41259648]
[1693759262140,17.53659576,1628.4,1628.3,6.1426]
[1693759262443,2.38516224,1628.4,1628.3,12.2852]
[1693759262636,5.45627224,1628.4,1628.3,12.2852]
[1693759262836,6.14222,1628.4,1628.3,12.2852]
[1693759263035,2.38516224,1628.5,1628.3,12.2852]
[1693759263237,2.38516224,1628.6,1628.4,3.21378107]
[1693759263538,2.38516224,1628.7,1628.5,25.78668]
[1693759263745,2.38516224,1628.7,1628.6,3.21378107]
[1693759264040,9.3231627,1628.9,1628.6,15.49670107]
[1693759264041,8.52598224,1628.8,1628.6,15.49670107]
[1693759265138,2.38516224,1628.8,1628.6,15.49670107]
[1693759265540,8.52563224,1628.8,1628.6,15.49670107]
[1693759265738,6.14047,1628.8,1628.6,15.49670107]
[1693759265939,8.52602797,1628.8,1628.6,15.49670107]
[1693759266136,2.38555797,1628.8,1628.6,15.49670107]
[1693759266339,8.52570797,1628.9,1628.6,15.49670107]
[1693759266737,2.38555797,1628.9,1628.7,13.503]
[1693759267046,8.52549797,1628.9,1628.8,15.49426107]
[1693759267743,8.52585012,1628.9,1628.8,15.49426107]
[1693759269048,8.52615805,1628.9,1628.8,15.49426107]
[1693759269447,17.53332157,1628.9,1628.8,8.41017648]
[1693759269846,14.66615805,1628.9,1628.8,9.35402107]
[1693759270047,12.27994,1628.9,1628.8,9.35402107]
[1693759270247,18.32872759,1628.9,1628.8,6.14024]
[1693759270449,18.32872759,1628.9,1628.7,3.07023]
[1693759270647,2.38632689,1628.8,1628.6,6.14098]
[1693759270950,16.93774337,1628.8,1628.7,3.0703]
[1693759271150,13.86737337,1628.8,1628.7,6.14067]
[1693759271752,13.86737337,1628.8,1628.7,7.08451459]
[1693759271949,28.05441648,1628.8,1628.6,8.41088648]
[1693759272159,5.25381856,1628.7,1628.6,8.41082648]
[1693759272451,15.25989759,1628.7,1628.6,11.48138648]
[1693759272844,15.25989759,1628.7,1628.6,12.42523107]
[1693759273049,15.25989759,1628.7,1628.6,11.48138648]
[1693759273254,18.33027759,1628.7,1628.6,3.0704]
[1693759273553,18.33027759,1628.7,1628.6,6.14096]
[1693759274054,18.33535752,1628.7,1628.6,7.08480459]
[1693759274253,18.33535752,1628.7,1628.6,6.14096]
[1693759274553,18.33535752,1628.7,1628.6,9.21152]
[1693759274754,19.13076354,1628.7,1628.6,9.21152]
[1693759275155,16.06038354,1628.7,1628.6,9.21152]
[1693759275456,16.06038354,1628.7,1628.6,10.15536459]
[1693759275661,10.12285002,1628.7,1628.6,13.22595459]
[1693759276152,6.14581993,1628.7,1628.6,13.22595459]
[1693759276864,10.1310413,1628.7,1628.6,13.22595459]
[1693759277050,12.99820482,1628.7,1628.6,10.15536459]
[1693759277252,12.08338345,1628.7,1628.6,6.14096]
[1693759277557,12.08338345,1628.7,1628.6,3.0704]
[1693759277558,15.15378345,1628.7,1628.6,3.0704]
[1693759278150,15.15378345,1628.7,1628.6,6.14098]
[1693759279462,12.08338345,1628.7,1628.6,6.14098]
[1693759279858,10.13523785,1628.7,1628.6,10.15540459]
[1693759280355,13.20563785,1628.7,1628.6,10.15540459]
[1693759281161,13.20855648,1628.7,1628.6,10.15540459]
[1693759281660,12.08338345,1628.7,1628.6,10.15540459]
[1693759282557,12.08338345,1628.7,1628.6,9.21156]
[1693759282855,9.01298345,1628.7,1628.6,10.15540459]
[1693759283262,12.08338345,1628.7,1628.6,10.15540459]
[1693759283463,9.01298345,1628.7,1628.6,10.15540459]
[1693759284061,9.01298345,1628.7,1628.6,13.22598459]
[1693759284361,6.14581993,1628.7,1628.6,13.22598459]
[1693759285264,0.00507993,1628.7,1628.6,13.22598459]
[1693759285759,3.99860262,1628.7,1628.6,13.22598459]
[1693759286059,6.14587993,1628.7,1628.6,13.22598459]
[1693759288460,10.93318143,1628.7,1628.6,13.22598459]
[1693759288666,7.86278143,1628.7,1628.6,13.22598459]
[1693759288867,4.79238143,1628.7,1628.6,13.22598459]
[1693759289671,4.79825753,1628.7,1628.6,13.22598459]
[1693759293368,4.79825753,1628.7,1628.6,21.82698459]
[1693759294569,0.00507993,1628.7,1628.6,21.82698459]
[1693759296566,3.07546993,1628.7,1628.6,21.82698459]
[1693759299172,6.14583993,1628.7,1628.6,21.82698459]
[1693759302874,0.00507993,1628.7,1628.6,18.75398459]
[1693759304179,12.08341345,1628.7,1628.6,15.68340459]
[1693759304481,18.91453865,1628.7,1628.6,15.68340459]
[1693759304776,17.68605796,1628.7,1628.6,15.68340459]
[1693759304978,11.74850444,1628.7,1628.6,15.68340459]
[1693759305176,11.74850444,1628.7,1628.6,18.75398459]
[1693759305776,5.60772444,1628.7,1628.6,18.75398459]
[1693759306171,4.8075109,1628.7,1628.6,18.75398459]
[1693759306378,0.00507993,1628.7,1628.6,18.75398459]
[1693759307284,4.80739192,1628.7,1628.6,18.75398459]
[1693759308182,4.80734455,1628.7,1628.6,18.75398459]
[1693759308677,0.00507993,1628.7,1628.6,18.75398459]
[1693759309081,5.60772444,1628.7,1628.6,18.75398459]
[1693759309776,10.0,1628.6,1628.1,0.49726593]
[1693759309977,5.528,1628.2,1627.9,0.2563]
[1693759310171,5.5894,1628.0,1627.9,0.2563]
[1693759310382,11.00754375,1628.0,1627.9,6.19537352]
[1693759310582,14.07926375,1628.0,1627.9,3.12346352]
[1693759310788,20.48228604,1628.0,1627.9,3.12346352]
[1693759310984,16.29959639,1628.0,1627.9,3.12346352]
[1693759311697,24.66473884,1628.0,1627.9,3.12346352]
[1693759312198,21.82759639,1628.0,1627.9,3.12346352]
[1693759312391,24.66473884,1628.0,1627.8,8.41381648]
[1693759312596,7.85933648,1627.9,1627.3,4.02487538]
[1693759312889,0.0614,1627.7,1627.6,14.74792]
[1693759313091,3.13367,1627.7,1627.6,11.67546]
[1693759313295,3.13367,1627.7,1627.6,14.74792]
[1693759313491,3.13367,1627.7,1627.6,14.77794107]
[1693759314087,0.0614,1627.7,1627.6,11.70548107]
[1693759314292,3.13366,1627.7,1627.6,11.70548107]
[1693759314793,0.0614,1627.7,1627.6,11.70548107]
[1693759314996,3.13365,1627.7,1627.6,14.77794107]
[1693759315590,0.00551475,1628.0,1627.6,30.85039107]
[1693759315893,24.45757269,1628.3,1627.9,20.8904]
[1693759316092,9.82906011,1628.3,1628.2,3.07131]
[1693759316295,10.44348444,1628.3,1628.2,3.10130107]
[1693759316498,15.22899445,1628.3,1628.2,3.10130107]
[1693759317401,22.39619544,1628.3,1628.1,11.1504]
[1693759317589,0.61442433,1628.2,1628.1,11.1504]
[1693759317797,10.74460741,1628.2,1628.1,11.18042107]
[1693759318198,13.81591741,1628.2,1628.1,5.64892107]
[1693759318400,13.81591741,1628.2,1628.0,8.603]
[1693759318598,3.48158785,1628.1,1627.9,9.21551]
[1693759318896,10.19153189,1628.0,1627.9,6.17365107]
[1693759319105,4.04815189,1628.0,1627.9,6.17365107]
[1693759319399,4.04815189,1628.0,1627.9,9.24554107]
[1693759319598,4.04815189,1628.0,1627.9,9.24550107]
[1693759319800,0.0614,1628.0,1627.9,17.84850107]
[1693759320103,3.24962316,1628.0,1627.9,17.84850107]
[1693759320305,6.20516,1627.9,1627.8,3.07202]
[1693759320501,9.3932263,1627.9,1627.8,3.07202]
[1693759320698,9.3932263,1627.9,1627.8,3.10204107]
[1693759321105,9.3932263,1627.9,1627.8,6.17411107]
[1693759321296,6.20516,1627.9,1627.8,6.17411107]
[1693759321498,10.19191189,1627.9,1627.8,6.17411107]
[1693759322202,6.32059164,1627.9,1627.8,9.24619107]
[1693759323198,6.32059164,1627.9,1627.8,6.17411107]
[1693759323199,9.39247164,1627.9,1627.8,6.17411107]
[1693759323399,21.56648924,1627.9,1627.7,2.5474]
[1693759323607,7.5268352,1627.8,1627.7,2.5474]
[1693759323798,16.7430452,1627.8,1627.7,2.5474]
[1693759324000,12.14477352,1627.8,1627.7,2.5474]
[1693759324302,17.59927119,1627.8,1627.7,2.5474]
[1693759324794,0.0614,1627.7,1627.5,14.74805]
[1693759325095,7.73717929,1627.6,1627.5,14.74813]
[1693759325499,7.73717929,1627.6,1627.5,14.77815107]
[1693759325702,7.73717929,1627.6,1627.5,14.74813]
[1693759325902,7.73717929,1627.6,1627.5,6.14513]
[1693759326308,7.73717929,1627.6,1627.5,6.17515107]
[1693759326606,10.60434281,1627.6,1627.5,6.17515107]
[1693759327006,10.60434281,1627.6,1627.3,6.18752785]
[1693759327007,30.01059823,1627.6,1627.3,6.18752785]
[1693759327304,1.6523805,1627.4,1627.3,2.6311]
[1693759327609,19.0807605,1627.4,1627.3,2.6311]
[1693759327809,17.48978,1627.4,1627.3,2.6311]
[1693759328304,17.48978,1627.4,1626.9,6.46804]
[1693759328305,30.07217944,1627.4,1626.9,6.46804]
[1693759328508,8.603,1627.1,1626.9,6.46804]
[1693759328704,6.20856,1627.0,1626.9,3.3943]
[1693759329101,12.14930352,1627.0,1626.9,3.39434]
[1693759329600,15.22288352,1627.0,1626.9,0.3206]
[1693759329804,12.14930352,1627.0,1626.9,0.3206]
[1693759330608,9.28214,1627.0,1626.9,2.8162]
[1693759330798,12.14930352,1627.0,1626.9,2.84622107]
[1693759331199,12.14930352,1627.0,1626.9,2.8162]
[1693759331510,12.14930352,1627.0,1626.9,2.84622107]
[1693759331699,12.14930352,1627.0,1626.9,2.8162]
[1693759332413,12.14930352,1627.0,1626.9,2.84622107]
[1693759332908,12.14930352,1627.0,1626.9,2.4956]
[1693759333305,9.28214,1627.0,1626.9,2.52562107]
[1693759333508,3.13469,1627.2,1626.9,14.17236]
[1693759333808,1.5892879,1627.5,1627.1,8.603]
[1693759334013,5.45644185,1627.6,1627.4,8.603]
[1693759334014,9.2177,1627.6,1627.4,8.603]
[1693759334200,7.7954379,1627.7,1627.5,6.17528107]
[1693759334401,0.0614,1627.7,1627.5,11.75051107]
[1693759335100,0.0614,1627.7,1627.5,14.82314107]
[1693759335309,8.603,1627.9,1627.6,8.603]
[1693759335310,0.0614,1627.9,1627.6,8.603]
[1693759335513,6.14352,1628.0,1627.8,9.21612]
[1693759335709,7.7322979,1628.1,1627.8,20.89116]
[1693759335903,6.14301,1628.1,1627.8,20.89116]
[1693759336105,6.14301,1628.1,1628.0,3.07161]
[1693759336513,3.0715,1628.1,1628.0,6.14323]
[1693759336720,19.4064379,1628.2,1628.0,6.14323]
[1693759336915,16.3350279,1628.2,1628.1,0.03002107]
[1693759337209,22.27360142,1628.2,1628.0,8.56053]
[1693759337407,22.27360142,1628.2,1628.1,0.03002107]
[1693759337813,22.26983422,1628.2,1628.0,8.56053]
[1693759338013,22.26983422,1628.2,1628.1,0.03002107]
[1693759338408,22.26983422,1628.2,1628.0,8.56052]
[1693759338609,22.26983422,1628.2,1628.0,8.59054107]
[1693759339013,12.45845718,1628.1,1628.0,2.4173]
[1693759339210,24.74433718,1628.1,1628.0,2.4173]
[1693759339407,24.74433718,1628.1,1627.6,16.5609]
[1693759339607,8.41558,1627.8,1627.6,16.5609]
[1693759339814,9.01150352,1627.7,1627.6,16.5609]
[1693759340013,6.14434,1627.7,1627.6,2.63292107]
[1693759340716,6.14434,1627.7,1627.6,5.70528107]
[1693759340911,9.01150352,1627.7,1627.6,2.63292107]
[1693759341116,6.14434,1627.7,1627.6,2.63292107]
[1693759341717,9.01150352,1627.7,1627.6,2.63292107]
[1693759341918,6.14434,1627.7,1627.6,5.70529107]
[1693759342617,3.07217,1627.7,1627.6,5.70529107]
[1693759342818,8.41417648,1627.8,1627.6,8.17739107]
[1693759343010,8.41417648,1627.8,1627.6,11.24976107]
[1693759343415,11.28134,1627.8,1627.6,19.85276107]
[1693759343614,14.35351,1627.8,1627.6,16.78039107]
[1693759343812,14.36272574,1627.8,1627.6,16.78039107]
[1693759344014,12.09278926,1627.8,1627.6,16.78039107]
[1693759344216,9.22562574,1627.8,1627.6,19.85278107]
[1693759344625,0.0613,1627.7,1627.6,19.85278107]